[Event "2nd Asian Nations Team Cup U14 2019"]
[Site "Shenzhen"]
[Date "2019.12.19"]
[Round "1.2"]
[White "Lam, Chun Yung Samuel"]
[Black "Tsogtbayar, Batlut"]
[Result "1-0"]
[ECO "A07"]
[WhiteElo "1288"]
[BlackElo "1404"]
[Annotator "NA RC"]
[PlyCount "67"]
[EventDate "2019.12.19"]
[EventType "team-tourn"]
[EventCountry "CHN"]
[SourceTitle "playchess.com"]
[Source "ChessBase"]
[SourceQuality "1"]
[TimeControl "5400+30"]

1. Nf3 {[%emt 0:00:00]} d5 {[%emt 0:00:00]} 2. g3 {[%emt 0:00:00]} Nf6 {[%emt 0:00:44]} 3. Bg2 {[%emt 0:00:00]} g6 {[%emt 0:00:48]} 4. O-O {[%emt 0:00:19]} Bg7 {[%emt 0:00:32]} 5. d3 {[%emt 0:00:16]} O-O {[%emt 0:01:34]} 6. Nbd2 {[%emt 0:00:09]} Nbd7 {[%emt 0:02:00]} 7. e4 {[%emt 0:00:30]} e5 {[%emt 0:08:00]} 8. c3 {[%emt 0:08:33]} c6 {[%emt 0:02:30]} 9. Ne1 {[%emt 0:00:43]} dxe4 {[%emt 0:03:12]} 10. dxe4 {[%emt 0:00:41]} Re8 {[%emt 0:02:14]} 11. f4 {[%emt 0:12:14]} Nc5 {[%emt 0:03:08]} 12. Qc2 {[%emt 0:05:52]} a5 {[%emt 0:06:10]} 13. f5 {[%emt 0:02:43]} b6 {[%emt 0:02:27]} 14. b4 {[%emt 0:04:06]} Na6 {[%emt 0:01:58]} 15. bxa5 {[%emt 0:04:34]} bxa5 {[%emt 0:00:39]} 16. Ba3 {[%emt 0:00:42]} Nc7 {[%emt 0:01:43]} 17. h3 {[%emt 0:14:19]} Ba6 {[%emt 0:02:57]} 18. Rf2 {[%emt 0:01:20]} Qd7 {[%emt 0:01:57]} 19. Nb3 {[%emt 0:01:17]} Bc4 {[%emt 0:02:35]} 20. Nc5 {[%emt 0:03:24]} Qc8 {[%emt 0:01:25]} 21. Rb1 {[%emt 0:01:33]} Nb5 {[%emt 0:03:39]} 22. Bc1 {[%emt 0:01:19]} Nd6 {[%emt 0:01:19]} 23. g4 {[%emt 0:00:48]} h6 {[%emt 0:01:34]} 24. g5 {[%emt 0:02:29]} hxg5 {[%emt 0:02:09]} 25. Bxg5 {[%emt 0:00:45]} Nd7 {[%emt 0:01:23]} 26. Nxd7 {[%emt 0:00:46]} Qxd7 {[%emt 0:00:19]} 27. f6 {[%emt 0:02:15]} Bf8 {[%emt 0:01:32]} 28. h4 {[%emt 0:01:03]} Nb5 {[%emt 0:02:06]} 29. Rd1 {[%emt 0:01:13]} Qa7 {[%emt 0:00:58]} 30. Kh2 {[%emt 0:06:52]} a4 {[%emt 0:02:25]} 31. Rf3 {[%emt 0:02:19]} Na3 {[%emt 0:01:19]} 32. Qd2 {[%emt 0:01:43]} Qc7 {[%emt 0:02:01]} 33. Qf2 {[%emt 0:02:03]} Nb5 {[%emt 0:01:00]} 34. h5 {[%emt 0:00:50]} 1-0

[Event "2nd Asian Nations Team Cup U14 2019"]
[Site "Shenzhen"]
[Date "2019.12.19"]
[Round "1.5"]
[White "Han, Xuqian Ben"]
[Black "Jin Yueheng"]
[Result "0-1"]
[ECO "B15"]
[WhiteElo "1714"]
[BlackElo "1924"]
[Annotator "NA RC"]
[PlyCount "88"]
[EventDate "2019.12.19"]
[EventType "team-tourn"]
[EventCountry "CHN"]
[SourceTitle "playchess.com"]
[Source "ChessBase"]
[SourceQuality "1"]
[TimeControl "5400+30"]

1. e4 {[%emt 0:00:00]} c6 {[%emt 0:00:00]} 2. d4 {[%emt 0:00:00]} d5 {[%emt 0:00:00]} 3. Nd2 {[%emt 0:00:00]} dxe4 {[%emt 0:00:00]} 4. Nxe4 {[%emt 0:00:00]} Nf6 {[%emt 0:00:00]} 5. Nxf6+ {[%emt 0:12:43]} exf6 {[%emt 0:00:00]} 6. Nf3 {[%emt 0:02:48]} Bd6 {[%emt 0:00:00]} 7. Bd3 {[%emt 0:05:02]} O-O {[%emt 0:00:00]} 8. O-O {[%emt 0:00:37]} Re8 {[%emt 0:00:00]} 9. b3 {[%emt 0:10:28]} Nd7 {[%emt 0:00:00]} 10. Bb2 {[%emt 0:00:22]} Nf8 {[%emt 0:00:00]} 11. Re1 {[%emt 0:00:14]} Ng6 {[%emt 0:00:09]} 12. c4 {[%emt 0:00:22]} Bg4 {[%emt 0:05:23]} 13. Rxe8+ {[%emt 0:03:00]} Qxe8 {[%emt 0:00:02]} 14. h3 {[%emt 0:00:28]} Bd7 {[%emt 0:02:09]} 15. Bxg6 {[%emt 0:01:44]} fxg6 {[%emt 0:00:44]} 16. d5 {[%emt 0:01:04]} Rd8 {[%emt 0:01:24]} 17. Qd2 {[%emt 0:01:19]} Qf7 {[%emt 0:01:06]} 18. Qa5 {[%emt 0:01:56]} Ra8 {[%emt 0:02:04]} 19. Rd1 {[%emt 0:05:14]} c5 {[%emt 0:01:36]} 20. Re1 {[%emt 0:02:10]} b6 {[%emt 0:00:11]} 21. Qc3 {[%emt 0:00:38]} g5 {[%emt 0:00:17]} 22. a3 {[%emt 0:00:41]} g4 {[%emt 0:00:36]} 23. hxg4 {[%emt 0:00:24]} Bxg4 {[%emt 0:00:07]} 24. b4 {[%emt 0:00:08]} Qh5 {[%emt 0:00:46]} 25. bxc5 {[%emt 0:00:48]} bxc5 {[%emt 0:00:02]} 26. Qe3 {[%emt 0:00:44]} Kf8 {[%emt 0:01:00]} 27. Bc3 {[%emt 0:04:32]} Rb8 {[%emt 0:03:22]} 28. Ba5 {[%emt 0:01:07]} Rb7 {[%emt 0:06:01]} 29. Qc3 {[%emt 0:02:19]} a6 {[%emt 0:07:14]} 30. a4 {[%emt 0:03:10]} h6 {[%emt 0:00:08]} 31. Qd3 {[%emt 0:00:32]} Kf7 {[%emt 0:14:20]} 32. Qe3 {[%emt 0:13:42]} Kf8 {[%emt 0:04:18]} 33. Qd3 {[%emt 0:01:42]} Kg8 {[%emt 0:04:48]} 34. Bd2 {[%emt 0:08:24]} Rb2 {[%emt 0:03:42]} 35. Bc3 {[%emt 0:02:23]} Bxf3 {[%emt 0:01:11]} 36. Re8+ {[%emt 0:00:23]} Kf7 {[%emt 0:00:48]} 37. Re7+ {[%emt 0:00:55]} Kxe7 {[%emt 0:00:11]} 38. Bxf6+ {[%emt 0:00:03]} Kxf6 39. Qc3+ Be5 40. Qxf3+ Qxf3 41. gxf3 Kg5 42. a5 h5 43. f4+ Kxf4 44. d6 {[%emt 0:03:00]} Kf3 0-1

[Event "2nd Asian Nations Team Cup U14 2019"]
[Site "Shenzhen"]
[Date "2019.12.19"]
[Round "1.6"]
[White "Zhang, Di"]
[Black "Kannappan, Thanneermalai"]
[Result "1-0"]
[ECO "A30"]
[WhiteElo "2013"]
[BlackElo "1495"]
[Annotator "NA RC"]
[PlyCount "83"]
[EventDate "2019.12.19"]
[EventType "team-tourn"]
[EventCountry "CHN"]
[SourceTitle "playchess.com"]
[Source "ChessBase"]
[SourceQuality "1"]
[TimeControl "5400+30"]

1. Nf3 {[%emt 0:00:00]} Nf6 {[%emt 0:00:00]} 2. g3 {[%emt 0:00:00]} b6 {[%emt 0:00:00]} 3. Bg2 {[%emt 0:00:00]} Bb7 {[%emt 0:00:06]} 4. O-O {[%emt 0:00:18]} e6 {[%emt 0:00:30]} 5. d4 {[%emt 0:00:20]} Be7 {[%emt 0:00:49]} 6. c4 {[%emt 0:00:09]} c5 {[%emt 0:02:37]} 7. d5 {[%emt 0:01:40]} exd5 {[%emt 0:03:28]} 8. Nh4 {[%emt 0:00:11]} O-O {[%emt 0:04:11]} 9. cxd5 {[%emt 0:01:45]} d6 {[%emt 0:02:48]} 10. Nc3 {[%emt 0:01:50]} Nbd7 {[%emt 0:02:04]} 11. Nf5 {[%emt 0:00:50]} a6 {[%emt 0:06:51]} 12. a4 {[%emt 0:02:24]} Rc8 {[%emt 0:12:01]} 13. Bf4 {[%emt 0:00:40]} Nb8 {[%emt 0:08:17]} 14. e4 {[%emt 0:02:29]} g6 {[%emt 0:03:41]} 15. Ne3 {[%emt 0:01:04]} Nh5 {[%emt 0:06:26]} 16. Bh6 {[%emt 0:00:02]} Re8 {[%emt 0:01:39]} 17. Nc4 {[%emt 0:00:25]} Bf8 {[%emt 0:04:56]} 18. Bxf8 {[%emt 0:00:36]} Kxf8 {[%emt 0:01:51]} 19. Qb3 {[%emt 0:01:16]} Nf6 {[%emt 0:07:56]} 20. Nxb6 {[%emt 0:01:57]} Rc7 {[%emt 0:01:01]} 21. Nc4 {[%emt 0:00:13]} Rce7 {[%emt 0:01:13]} 22. e5 {[%emt 0:01:29]} Ng4 {[%emt 0:03:47]} 23. Nxd6 {[%emt 0:00:29]} Qd7 {[%emt 0:00:59]} 24. Nxe8 {[%emt 0:00:30]} Rxe8 {[%emt 0:00:25]} 25. e6 {[%emt 0:00:18]} Qe7 {[%emt 0:02:28]} 26. d6 {[%emt 0:00:10]} Qxd6 {[%emt 0:00:14]} 27. Qxb7 {[%emt 0:00:32]} Qxe6 {[%emt 0:00:35]} 28. Rad1 {[%emt 0:00:22]} Ne5 {[%emt 0:00:25]} 29. Rfe1 {[%emt 0:00:42]} Nbd7 {[%emt 0:00:51]} 30. f4 {[%emt 0:00:16]} Qf6 {[%emt 0:00:25]} 31. fxe5 {[%emt 0:00:10]} Nxe5 {[%emt 0:00:12]} 32. Rf1 {[%emt 0:00:34]} Qg5 {[%emt 0:00:22]} 33. Rde1 {[%emt 0:00:06]} Re7 {[%emt 0:00:54]} 34. Qb8+ {[%emt 0:00:12]} Kg7 {[%emt 0:00:09]} 35. Nd5 {[%emt 0:00:11]} Re6 {[%emt 0:00:12]} 36. Nc7 {[%emt 0:00:15]} Re7 {[%emt 0:00:04]} 37. Ne8+ {[%emt 0:00:07]} Kh6 {[%emt 0:00:23]} 38. Nf6 {[%emt 0:00:03]} Nf3+ {[%emt 0:00:41]} 39. Bxf3 {[%emt 0:00:03]} Qxf6 {[%emt 0:00:14]} 40. Qf8+ {[%emt 0:00:05]} Kg5 {[%emt 0:00:28]} 41. h4+ {[%emt 0:00:02]} Kf5 {[%emt 0:00:10]} 42. Bd1# {[%emt 0:00:05]} 1-0

[Event "2nd Asian Nations Team Cup U14 2019"]
[Site "Shenzhen"]
[Date "2019.12.19"]
[Round "1.7"]
[White "Liu, Fung Ming Mathew"]
[Black "Xiao, Tong"]
[Result "0-1"]
[ECO "B99"]
[WhiteElo "1493"]
[BlackElo "1925"]
[Annotator "NA RC"]
[PlyCount "66"]
[EventDate "2019.12.19"]
[EventType "team-tourn"]
[EventCountry "CHN"]
[SourceTitle "playchess.com"]
[Source "ChessBase"]
[SourceQuality "1"]
[TimeControl "5400+30"]

1. e4 {[%emt 0:00:00]} c5 {[%emt 0:00:00]} 2. Nf3 {[%emt 0:00:00]} d6 {[%emt 0:00:00]} 3. d4 {[%emt 0:00:00]} cxd4 {[%emt 0:00:01]} 4. Nxd4 {[%emt 0:00:00]} Nf6 {[%emt 0:00:07]} 5. Nc3 {[%emt 0:00:01]} a6 {[%emt 0:00:04]} 6. Bg5 {[%emt 0:00:44]} e6 {[%emt 0:00:29]} 7. f4 {[%emt 0:00:25]} Be7 {[%emt 0:00:11]} 8. Qf3 {[%emt 0:00:15]} h6 {[%emt 0:00:26]} 9. Bh4 {[%emt 0:00:41]} Qc7 {[%emt 0:00:27]} 10. O-O-O {[%emt 0:01:53]} Nbd7 {[%emt 0:00:28]} 11. g4 {[%emt 0:01:58]} b5 {[%emt 0:01:11]} 12. Bxf6 {[%emt 0:01:33]} Nxf6 {[%emt 0:00:42]} 13. f5 {[%emt 0:02:11]} b4 {[%emt 0:00:58]} 14. Nce2 {[%emt 0:02:04]} e5 {[%emt 0:01:09]} 15. Nb3 {[%emt 0:00:33]} Bb7 {[%emt 0:00:45]} 16. Ng3 {[%emt 0:00:41]} d5 {[%emt 0:05:37]} 17. exd5 {[%emt 0:01:26]} Rd8 {[%emt 0:00:50]} 18. Nh5 {[%emt 0:06:39]} Nxd5 {[%emt 0:01:34]} 19. Bg2 {[%emt 0:08:21]} Ne3 {[%emt 0:04:03]} 20. Rxd8+ {[%emt 0:04:23]} Bxd8 {[%emt 0:00:22]} 21. Qe2 {[%emt 0:00:47]} Nxg2 {[%emt 0:01:14]} 22. Rd1 {[%emt 0:01:03]} Bg5+ {[%emt 0:00:20]} 23. Kb1 {[%emt 0:00:33]} O-O {[%emt 0:00:10]} 24. Rg1 {[%emt 0:02:10]} Nf4 {[%emt 0:00:21]} 25. Nxf4 {[%emt 0:02:42]} exf4 {[%emt 0:00:24]} 26. Qf2 {[%emt 0:00:38]} Bf6 {[%emt 0:00:20]} 27. h4 {[%emt 0:00:18]} Qe5 {[%emt 0:00:04]} 28. c4 {[%emt 0:03:30]} bxc3 {[%emt 0:00:07]} 29. bxc3 {[%emt 0:02:00]} Be4+ {[%emt 0:00:06]} 30. Kc1 {[%emt 0:00:50]} Qxc3+ {[%emt 0:00:04]} 31. Kd1 {[%emt 0:00:59]} Rd8+ {[%emt 0:00:11]} 32. Nd2 {[%emt 0:00:40]} Bf3+ {[%emt 0:04:17]} 33. Ke1 {[%emt 0:02:57]} Qc1# {[%emt 0:00:05]} 0-1

[Event "2nd Asian Nations Team Cup U14 2019"]
[Site "Shenzhen"]
[Date "2019.12.19"]
[Round "1.8"]
[White "Chen, Yuan"]
[Black "Lee, Gerent Chak Yan"]
[Result "1-0"]
[ECO "C14"]
[WhiteElo "2056"]
[BlackElo "1450"]
[Annotator "NA RC"]
[PlyCount "56"]
[EventDate "2019.12.19"]
[EventType "team-tourn"]
[EventCountry "CHN"]
[SourceTitle "playchess.com"]
[Source "ChessBase"]
[SourceQuality "1"]
[TimeControl "5400+30"]

1. e4 {[%emt 0:00:00]} e6 {[%emt 0:00:00]} 2. d4 {[%emt 0:00:00]} d5 {[%emt 0:00:09]} 3. Nc3 {[%emt 0:00:00]} Nf6 {[%emt 0:00:33]} 4. Bg5 {[%emt 0:00:36]} Be7 {[%emt 0:00:55]} 5. e5 {[%emt 0:00:19]} Nfd7 {[%emt 0:01:04]} 6. Bxe7 {[%emt 0:00:06]} Qxe7 {[%emt 0:00:07]} 7. f4 {[%emt 0:00:05]} a6 {[%emt 0:01:07]} 8. Nf3 {[%emt 0:00:13]} c5 {[%emt 0:00:48]} 9. Qd2 {[%emt 0:02:12]} Nc6 {[%emt 0:01:16]} 10. O-O-O {[%emt 0:04:39]} b5 {[%emt 0:13:34]} 11. dxc5 {[%emt 0:01:27]} Nxc5 {[%emt 0:10:47]} 12. Bd3 {[%emt 0:05:11]} b4 {[%emt 0:07:00]} 13. Ne2 {[%emt 0:00:17]} a5 {[%emt 0:02:27]} 14. Ned4 {[%emt 0:04:52]} Nxd4 {[%emt 0:10:04]} 15. Nxd4 {[%emt 0:00:04]} Nxd3+ {[%emt 0:00:13]} 16. Qxd3 {[%emt 0:01:03]} Ba6 {[%emt 0:01:57]} 17. Qg3 {[%emt 0:00:34]} g6 {[%emt 0:08:27]} 18. Qe3 {[%emt 0:03:04]} O-O {[%emt 0:02:40]} 19. g4 {[%emt 0:02:13]} Rac8 {[%emt 0:10:40]} 20. f5 {[%emt 0:11:14]} exf5 {[%emt 0:00:21]} 21. gxf5 {[%emt 0:00:02]} Rfe8 {[%emt 0:00:27]} 22. e6 {[%emt 0:00:50]} Rc4 {[%emt 0:05:41]} 23. Rhg1 {[%emt 0:06:39]} Rec8 {[%emt 0:05:18]} 24. exf7+ {[%emt 0:04:30]} Qxf7 {[%emt 0:01:17]} 25. fxg6 {[%emt 0:00:36]} hxg6 {[%emt 0:00:58]} 26. Rg2 {[%emt 0:06:01]} Re8 {[%emt 0:04:36]} 27. Qh6 {[%emt 0:01:06]} Rxd4 {[%emt 0:01:04]} 28. Rxg6+ {[%emt 0:00:09]} Qxg6 {[%emt 0:01:38]} 1-0

[Event "2nd Asian Nations Team Cup U14 2019"]
[Site "Shenzhen"]
[Date "2019.12.19"]
[Round "1.9"]
[White "Wang, Benchi"]
[Black "Li, Shanglin"]
[Result "0-1"]
[ECO "D79"]
[WhiteElo "1747"]
[BlackElo "2020"]
[Annotator "NA RC"]
[PlyCount "80"]
[EventDate "2019.12.19"]
[EventType "team-tourn"]
[EventCountry "CHN"]
[SourceTitle "playchess.com"]
[Source "ChessBase"]
[SourceQuality "1"]
[TimeControl "5400+30"]

1. d4 {[%emt 0:00:00]} Nf6 {[%emt 0:00:00]} 2. Nf3 {[%emt 0:00:26]} g6 {[%emt 0:00:00]} 3. c4 {[%emt 0:00:56]} c6 {[%emt 0:00:17]} 4. g3 {[%emt 0:01:34]} d5 {[%emt 0:00:07]} 5. cxd5 {[%emt 0:00:26]} cxd5 {[%emt 0:00:10]} 6. Bg2 {[%emt 0:00:03]} Bg7 {[%emt 0:00:12]} 7. O-O {[%emt 0:00:54]} O-O {[%emt 0:00:08]} 8. Ne5 {[%emt 0:02:34]} Bf5 {[%emt 0:00:10]} 9. Nc3 {[%emt 0:00:38]} Ne4 {[%emt 0:00:11]} 10. Qb3 {[%emt 0:06:56]} Nc6 {[%emt 0:00:08]} 11. Nxc6 {[%emt 0:11:53]} bxc6 {[%emt 0:00:01]} 12. Be3 {[%emt 0:00:11]} Nd6 {[%emt 0:01:23]} 13. Na4 {[%emt 0:02:57]} Nc4 {[%emt 0:01:11]} 14. Qc3 {[%emt 0:01:43]} Rc8 {[%emt 0:01:09]} 15. b3 {[%emt 0:01:47]} Nxe3 {[%emt 0:03:04]} 16. Qxe3 {[%emt 0:00:08]} c5 {[%emt 0:00:52]} 17. Nxc5 {[%emt 0:02:12]} e5 {[%emt 0:00:47]} 18. Rac1 {[%emt 0:00:28]} exd4 {[%emt 0:00:45]} 19. Qd2 {[%emt 0:01:43]} Qe7 {[%emt 0:01:49]} 20. b4 {[%emt 0:01:26]} Rfd8 {[%emt 0:00:13]} 21. a3 {[%emt 0:04:21]} h5 {[%emt 0:00:45]} 22. Nb3 {[%emt 0:00:59]} Rc4 {[%emt 0:00:59]} 23. Na5 {[%emt 0:00:36]} Rdc8 {[%emt 0:01:26]} 24. Nxc4 {[%emt 0:08:24]} dxc4 {[%emt 0:00:11]} 25. Bd5 {[%emt 0:01:09]} c3 {[%emt 0:00:23]} 26. Qd1 {[%emt 0:01:38]} Qe5 {[%emt 0:01:53]} 27. Qb3 {[%emt 0:02:36]} Rc7 {[%emt 0:02:32]} 28. Bc4 {[%emt 0:05:36]} Bh6 {[%emt 0:00:13]} 29. Ra1 {[%emt 0:04:21]} h4 {[%emt 0:00:28]} 30. a4 {[%emt 0:03:23]} hxg3 {[%emt 0:00:25]} 31. hxg3 {[%emt 0:00:08]} Bh3 {[%emt 0:00:12]} 32. Bd3 {[%emt 0:01:25]} Be3 {[%emt 0:00:34]} 33. Kh2 {[%emt 0:02:41]} Be6 {[%emt 0:01:29]} 34. Qc2 {[%emt 0:00:48]} Qh5+ {[%emt 0:00:55]} 35. Kg1 {[%emt 0:00:27]} Qh3 {[%emt 0:01:07]} 36. Bxg6 {[%emt 0:11:56]} Qxg3+ {[%emt 0:00:20]} 37. Kh1 {[%emt 0:00:05]} Qh3+ {[%emt 0:00:14]} 38. Kg1 {[%emt 0:00:16]} Qg4+ {[%emt 0:00:04]} 39. Kh1 {[%emt 0:00:43]} fxg6 {[%emt 0:00:09]} 40. fxe3 {[%emt 0:12:55]} Rh7# {[%emt 0:00:03]} 0-1

[Event "2nd Asian Nations Team Cup U14 2019"]
[Site "Shenzhen"]
[Date "2019.12.19"]
[Round "1.10"]
[White "Xue, Haowen"]
[Black "Zhang, Yuanxiao"]
[Result "1-0"]
[ECO "C42"]
[WhiteElo "1909"]
[BlackElo "1545"]
[Annotator "NA RC"]
[PlyCount "139"]
[EventDate "2019.12.19"]
[EventType "team-tourn"]
[EventCountry "CHN"]
[SourceTitle "playchess.com"]
[Source "ChessBase"]
[SourceQuality "1"]
[TimeControl "5400+30"]

1. e4 {[%emt 0:00:00]} e5 {[%emt 0:00:00]} 2. Nf3 {[%emt 0:00:00]} Nf6 {[%emt 0:00:00]} 3. Nxe5 {[%emt 0:00:00]} d6 {[%emt 0:00:04]} 4. Nf3 {[%emt 0:00:00]} Nxe4 {[%emt 0:00:07]} 5. d4 {[%emt 0:00:00]} d5 {[%emt 0:00:04]} 6. Bd3 {[%emt 0:00:10]} Bf5 {[%emt 0:00:34]} 7. O-O {[%emt 0:00:44]} Bd6 {[%emt 0:00:08]} 8. c4 {[%emt 0:00:43]} c6 {[%emt 0:00:11]} 9. Qc2 {[%emt 0:01:49]} O-O {[%emt 0:02:06]} 10. Nc3 {[%emt 0:00:27]} Re8 {[%emt 0:05:25]} 11. Re1 {[%emt 0:03:32]} Bb4 {[%emt 0:25:05]} 12. Bf4 {[%emt 0:08:37]} Bxc3 {[%emt 0:04:35]} 13. bxc3 {[%emt 0:00:05]} Bg6 {[%emt 0:02:07]} 14. Rab1 {[%emt 0:01:04]} b6 {[%emt 0:00:59]} 15. Ne5 {[%emt 0:03:19]} Nf6 {[%emt 0:01:05]} 16. Nxg6 {[%emt 0:03:00]} hxg6 {[%emt 0:00:27]} 17. cxd5 {[%emt 0:01:14]} Nxd5 {[%emt 0:02:21]} 18. Bd2 {[%emt 0:01:07]} Nd7 {[%emt 0:01:11]} 19. Rxe8+ {[%emt 0:00:11]} Qxe8 {[%emt 0:00:28]} 20. Re1 {[%emt 0:00:26]} Qf8 {[%emt 0:03:13]} 21. Be4 {[%emt 0:02:28]} N7f6 {[%emt 0:02:39]} 22. Bf3 {[%emt 0:02:01]} Re8 {[%emt 0:01:19]} 23. Rxe8 {[%emt 0:05:06]} Qxe8 {[%emt 0:00:30]} 24. c4 {[%emt 0:00:27]} Nf4 {[%emt 0:04:31]} 25. Be3 {[%emt 0:00:24]} Ne6 {[%emt 0:02:22]} 26. g3 {[%emt 0:02:33]} Qd7 {[%emt 0:01:54]} 27. Qd2 {[%emt 0:01:21]} Kh7 {[%emt 0:03:32]} 28. Kg2 {[%emt 0:01:44]} Kg8 {[%emt 0:01:06]} 29. h4 {[%emt 0:01:11]} Nc7 {[%emt 0:00:57]} 30. a4 {[%emt 0:06:50]} Qe6 {[%emt 0:01:07]} 31. Bf4 {[%emt 0:01:39]} Qd7 {[%emt 0:00:58]} 32. g4 {[%emt 0:05:54]} Ne6 {[%emt 0:05:14]} 33. Be3 {[%emt 0:09:22]} c5 {[%emt 0:02:22]} 34. g5 {[%emt 0:01:19]} Ne8 {[%emt 0:01:18]} 35. d5 {[%emt 0:00:24]} Nd8 {[%emt 0:05:58]} 36. Qd1 Nd6 37. Bg4 Qe8 38. Bf4 N8b7 39. Qc2 Kf8 40. h5 gxh5 41. Bxh5 Qe4+ 42. Qxe4 Nxe4 43. Bb8 Nc3 44. Bxa7 Nxa4 45. Bd1 Nc3 46. Bg4 b5 47. Bc8 Nd6 48. Bxc5 Ke7 49. cxb5 Ncxb5 50. Bb7 Nc3 51. f4 Ncb5 52. Bc6 Kd8 53. Kf3 Kc7 54. Ke3 f6 55. Kd3 fxg5 56. fxg5 g6 57. Bxb5 Nxb5 58. Kc4 Nd6+ 59. Bxd6+ Kxd6 60. Kd4 Kd7 61. Ke5 Ke7 62. d6+ Kf7 63. Kd5 Ke8 64. Ke6 Kf8 65. d7 Kg7 66. d8=Q Kh7 67. Qf6 Kg8 68. Qxg6+ Kh8 69. Qh5+ Kg8 70. g6 1-0

[Event "2nd Asian Nations Team Cup U14 2019"]
[Site "Shenzhen"]
[Date "2019.12.19"]
[Round "1.11"]
[White "Liu, David J"]
[Black "Wang, Xiaozhi"]
[Result "1/2-1/2"]
[ECO "A34"]
[WhiteElo "1897"]
[BlackElo "1872"]
[Annotator "NA RC"]
[PlyCount "106"]
[EventDate "2019.12.19"]
[EventType "team-tourn"]
[EventCountry "CHN"]
[SourceTitle "playchess.com"]
[Source "ChessBase"]
[SourceQuality "1"]
[TimeControl "5400+30"]

1. c4 {[%emt 0:00:00]} Nf6 {[%emt 0:00:00]} 2. Nc3 {[%emt 0:00:00]} g6 {[%emt 0:00:00]} 3. g3 {[%emt 0:08:05]} c5 {[%emt 0:00:04]} 4. Bg2 {[%emt 0:00:24]} Bg7 {[%emt 0:00:13]} 5. Nf3 {[%emt 0:00:07]} d5 {[%emt 0:01:27]} 6. cxd5 {[%emt 0:05:19]} Nxd5 {[%emt 0:00:03]} 7. Qa4+ {[%emt 0:01:38]} Nc6 {[%emt 0:03:19]} 8. Nxd5 {[%emt 0:00:16]} Qxd5 {[%emt 0:00:02]} 9. Nh4 {[%emt 0:00:07]} Qd6 {[%emt 0:00:27]} 10. d3 {[%emt 0:05:03]} O-O {[%emt 0:01:18]} 11. Bf4 {[%emt 0:00:19]} e5 {[%emt 0:00:03]} 12. Be3 {[%emt 0:00:31]} Nd4 {[%emt 0:02:23]} 13. Nf3 {[%emt 0:01:32]} Bd7 {[%emt 0:01:55]} 14. Qd1 {[%emt 0:01:08]} Rac8 {[%emt 0:03:07]} 15. O-O {[%emt 0:00:33]} Nxf3+ {[%emt 0:04:05]} 16. Bxf3 {[%emt 0:00:16]} Bc6 {[%emt 0:00:19]} 17. Bxc6 {[%emt 0:01:28]} Rxc6 {[%emt 0:01:04]} 18. Rc1 {[%emt 0:00:27]} Rfc8 {[%emt 0:02:58]} 19. Qb3 {[%emt 0:03:01]} b6 {[%emt 0:05:51]} 20. Qa4 {[%emt 0:03:16]} R6c7 {[%emt 0:03:05]} 21. Rc4 {[%emt 0:03:25]} Rb8 {[%emt 0:05:49]} 22. Qc2 {[%emt 0:04:15]} Rd7 {[%emt 0:06:57]} 23. Qb3 {[%emt 0:00:52]} Qd5 {[%emt 0:02:11]} 24. Bxc5 {[%emt 0:05:41]} Re8 {[%emt 0:04:41]} 25. Be3 {[%emt 0:04:59]} h5 {[%emt 0:04:40]} 26. Rb4 {[%emt 0:04:16]} Qd6 {[%emt 0:05:55]} 27. Ra4 {[%emt 0:08:52]} Bf6 {[%emt 0:08:13]} 28. Qa3 {[%emt 0:01:48]} Qxa3 {[%emt 0:02:11]} 29. Rxa3 {[%emt 0:00:00]} e4 {[%emt 0:01:19]} 30. Rb3 {[%emt 0:00:00]} exd3 {[%emt 0:01:51]} 31. exd3 {[%emt 0:00:00]} Red8 {[%emt 0:04:11]} 32. Rd1 {[%emt 0:00:00]} Rd5 {[%emt 0:03:22]} 33. Kf1 {[%emt 0:00:00]} R8d7 {[%emt 0:01:08]} 34. Ke2 {[%emt 0:00:00]} b5 {[%emt 0:02:40]} 35. Rc1 {[%emt 0:03:47]} a5 {[%emt 0:10:43]} 36. Rc5 {[%emt 0:00:00]} a4 {[%emt 0:01:47]} 37. Rbxb5 {[%emt 0:00:45]} Rxd3 {[%emt 0:00:01]} 38. Rc8+ Kg7 39. Ra8 a3 40. Rxa3 Rd1 41. Ra7 Rxa7 42. Bxa7 Rb1 43. a4 Ra1 44. a5 g5 45. Bb8 Ra2 46. Kd3 Bxb2 47. Rxb2 Rxa5 48. Kc4 Kg6 49. f4 f6 50. fxg5 fxg5 51. Rb6+ Kh7 52. Rb5 Ra2 53. Rxg5 Rxh2 {[%emt 0:08:03]} 1/2-1/2